fUST/lending_fUST_20240823
["ID","MTS","AMOUNT","RATE_DAILY","PERIOD"]
[335647317,1724398270956,-1499.21,0.00017534,2]
[335647319,1724398270965,-500.0,0.00017534,2]
[335647321,1724398270975,-939.51,0.00017534,2]
[335647323,1724398270986,-934.77,0.00017534,2]
[335647325,1724398270996,-500.0,0.00017534,2]
[335647327,1724398271005,-500.0,0.00017534,2]
[335647329,1724398271014,-500.0,0.00017534,2]
[335647331,1724398271024,-500.0,0.00017534,2]
[335647333,1724398271035,-722.37,0.00017534,2]
[335647335,1724398271045,-4413.59,0.00017534,2]
[335647336,1724398271066,-1292.02,0.00017534,2]
[335647338,1724398271075,-500.0,0.00017534,2]
[335647340,1724398271084,-606.52303671,0.00017534,2]
[335647342,1724398271094,-663.97,0.00017534,2]
[335647344,1724398271103,-500.0,0.00017534,2]
[335647346,1724398271112,-500.0,0.00017534,2]
[335647348,1724398271121,-500.0,0.00017534,2]
[335647350,1724398271130,-500.0,0.00017534,2]
[335647352,1724398271139,-3045.8,0.00017534,2]
[335647354,1724398271149,-606.69,0.00017534,2]
[335647356,1724398271161,-500.0,0.00017534,2]
[335647358,1724398271171,-2331.4,0.00017534,2]
[335647360,1724398271180,-500.0,0.00017534,2]
[335647362,1724398271189,-1102.26,0.00017534,2]
[335647364,1724398271199,-789.51,0.00017534,2]
[335647366,1724398271210,-500.0,0.00017534,2]
[335647368,1724398271220,-500.0,0.00017534,2]
[335647370,1724398271230,-882.14,0.00017534,2]
[335647372,1724398271242,-500.0,0.00017534,2]
[335647374,1724398271252,-500.0,0.00017534,2]
[335647376,1724398271262,-961.5,0.00017534,2]
[335647378,1724398271272,-1371.52,0.00017534,2]
[335647380,1724398271281,-500.0,0.00017534,2]
[335647382,1724398271291,-4298.02,0.00017534,2]
[335647384,1724398271303,-3320.9,0.00017534,2]
[335647386,1724398271313,-1017.06,0.00017534,2]
[335647388,1724398271322,-500.0,0.00017534,2]
[335647390,1724398271331,-840.91642,0.00017534,2]
[335647392,1724398271341,-1001.71,0.00017534,2]
[335647394,1724398271351,-2468.69,0.00017534,2]
[335647396,1724398271360,-500.0,0.00017534,2]
[335647398,1724398271370,-840.91642,0.00017534,2]
[335647400,1724398271379,-500.0,0.00017534,2]
[335647402,1724398271388,-500.0,0.00017534,2]
[335647404,1724398271397,-500.0,0.00017534,2]
[335647406,1724398271407,-500.0,0.00017534,2]
[335647408,1724398271416,-500.0,0.00017534,2]
[335647410,1724398271426,-166.323,0.00017535,2]
[335647412,1724398271435,-150.322,0.00017535,2]
[335647413,1724398271444,-246.417,0.00017535,2]
[335647416,1724398271455,-150.0,0.00017535,2]
[335647418,1724398271464,-3000.0,0.0001754,2]
[335647420,1724398271473,-250.0,0.00017545,2]
[335647422,1724398271483,-150.688,0.00017545,2]
[335647424,1724398271492,-218.189,0.00017545,2]
[335647426,1724398271501,-3000.0,0.0001755,2]
[335647428,1724398271511,-3000.0,0.0001756,2]
[335647430,1724398271520,-3381.76076519,0.00017568,2]
[335647432,1724398271530,-3000.0,0.0001757,2]
[335647434,1724398271539,-150.0,0.00017573,2]
[335647436,1724398271549,-3000.0,0.0001758,2]
[335647438,1724398271559,-3000.0,0.0001759,2]
[335647440,1724398271570,-3000.0,0.000176,2]
[335647442,1724398271581,-3000.0,0.0001761,2]
[335647444,1724398271592,-3000.0,0.0001762,2]
[335647446,1724398271602,-3000.0,0.0001763,2]
[335647463,1724398271750,-3000.0,0.0001764,2]
[335647465,1724398271762,-3000.0,0.0001765,2]
[335647467,1724398271771,-3000.0,0.0001766,2]
[335647470,1724398271783,-1347.0,0.00017661,2]
[335647472,1724398271792,-3000.0,0.0001767,2]
[335647474,1724398271807,-3000.0,0.0001768,2]
[335647476,1724398271816,-3000.0,0.0001769,2]
[335647478,1724398271826,-151.0,0.00017697,2]
[335647480,1724398271836,-151.169228,0.00017697,2]
[335647482,1724398271846,-151.0,0.00017697,2]
[335647484,1724398271855,-151.0,0.00017697,2]
[335647486,1724398271865,-151.0,0.00017697,2]
[335647488,1724398271874,-3025.800534,0.00017697,2]
[335647491,1724398271884,-3025.800534,0.00017697,2]
[335647492,1724398271893,-171.157194,0.00017697,2]
[335647495,1724398271903,-171.157194,0.00017697,2]
[335647497,1724398271912,-20000.0,0.00017697,2]
[335647499,1724398271921,-3000.0,0.000177,2]
[335647501,1724398271931,-3000.0,0.0001771,2]
[335647503,1724398271940,-3000.0,0.0001772,2]
[335647505,1724398271950,-3000.0,0.0001773,2]
[335647507,1724398271959,-3000.0,0.0001774,2]
[335647508,1724398271969,-3000.0,0.0001775,2]
[335647509,1724398271978,-3000.0,0.0001776,2]
[335647510,1724398271988,-3000.0,0.0001777,2]
[335647511,1724398271998,-1347.0,0.00017779,2]
[335647513,1724398272008,-151.0,0.0001778,2]
[335647515,1724398272018,-178.979274,0.0001778,2]
[335647517,1724398272028,-178.979274,0.0001778,2]
[335647519,1724398272037,-3000.0,0.0001778,2]
[335647521,1724398272047,-500.0,0.0001779,2]
[335647523,1724398272056,-3000.0,0.0001779,2]
[335647525,1724398272065,-3000.0,0.000178,2]
[335647527,1724398272075,-500.0,0.00017808,2]
[335647529,1724398272084,-155.077408,0.00017808,2]
[335647531,1724398272093,-151.0,0.00017808,2]
[335647533,1724398272102,-500.0,0.00017808,2]
[335647535,1724398272111,-500.0,0.00017808,2]
[335647537,1724398272121,-500.0,0.00017808,2]
[335647539,1724398272130,-500.0,0.00017808,2]
[335647541,1724398272139,-530.70264208,0.00017808,2]
[335647543,1724398272149,-725.36,0.00017808,2]
[335647545,1724398272162,-500.0,0.00017808,2]
[335647547,1724398272171,-500.0,0.00017808,2]
[335647549,1724398272181,-500.0,0.00017808,2]
[335647551,1724398272191,-500.0,0.00017808,2]
[335647553,1724398272200,-500.0,0.00017808,2]
[335647555,1724398272210,-500.0,0.00017808,2]
[335647557,1724398272221,-594.98,0.00017808,2]
[335647560,1724398272233,-819.25,0.00017808,2]
[335647562,1724398272242,-500.0,0.00017808,2]
[335647564,1724398272252,-500.0,0.00017808,2]
[335647566,1724398272261,-1005.17,0.00017808,2]
[335647568,1724398272270,-500.0,0.00017808,2]
[335647570,1724398272279,-369.93378863,0.00017808,2]
[335647572,1724398272289,-500.0,0.00017808,2]
[335647574,1724398272298,-500.0,0.00017808,2]
[335647576,1724398272307,-500.0,0.00017808,2]
[335647578,1724398272316,-500.0,0.00017808,2]
[335647580,1724398272326,-1141.12,0.00017808,2]
[335647582,1724398272335,-500.0,0.00017808,2]
[335647584,1724398272346,-562.89,0.00017808,2]
[335647586,1724398272355,-500.0,0.00017808,2]
[335647588,1724398272364,-500.0,0.00017808,2]
[335647590,1724398272373,-500.0,0.00017808,2]
[335647592,1724398272383,-500.0,0.00017808,2]
[335647594,1724398272392,-500.0,0.00017808,2]
[335647596,1724398272401,-829.81,0.00017808,2]
[335647598,1724398272410,-500.0,0.00017808,2]
[335647600,1724398272420,-500.0,0.00017808,2]
[335647602,1724398272429,-500.0,0.00017808,2]
[335647604,1724398272439,-500.0,0.00017808,2]
[335647606,1724398272448,-503.81655438,0.00017808,2]
[335647608,1724398272457,-500.0,0.00017808,2]
[335647610,1724398272467,-500.0,0.00017808,2]
[335647612,1724398272476,-536.83079357,0.00017808,2]
[335647614,1724398272486,-500.0,0.00017808,2]
[335647616,1724398272495,-500.0,0.00017808,2]
[335647618,1724398272504,-500.0,0.00017808,2]
[335647620,1724398272514,-502.22533345,0.00017808,2]
[335647622,1724398272523,-500.0,0.00017808,2]
[335647624,1724398272532,-500.0,0.00017808,2]
[335647626,1724398272542,-500.0,0.00017808,2]
[335647628,1724398272555,-200.0,0.00017808,2]
[335647630,1724398272564,-738.27,0.00017808,2]
[335647632,1724398272575,-500.0,0.00017808,2]
[335647634,1724398272585,-618.26,0.00017808,2]
[335647636,1724398272595,-500.0,0.00017808,2]
[335647638,1724398272604,-1075.78,0.00017808,2]
[335647640,1724398272613,-500.0,0.00017808,2]
[335647642,1724398272622,-500.0,0.00017808,2]
[335647644,1724398272632,-500.0,0.00017808,2]
[335647646,1724398272642,-427.61326945,0.00017808,2]
[335647648,1724398272651,-794.11,0.00017808,2]
[335647650,1724398272661,-500.0,0.00017808,2]
[335647653,1724398272671,-541.47,0.00017808,2]
[335647654,1724398272680,-500.0,0.00017808,2]
[335647657,1724398272690,-500.0,0.00017808,2]
[335647659,1724398272700,-577.3,0.00017808,2]
[335647661,1724398272709,-500.0,0.00017808,2]
[335647663,1724398272718,-212.56,0.00017808,2]
[335647665,1724398272730,-255.02287104,0.00017808,2]
[335647667,1724398272739,-500.0,0.00017808,2]
[335647669,1724398272748,-500.0,0.00017808,2]
[335647671,1724398272757,-500.0,0.00017808,2]
[335647673,1724398272766,-503.09992481,0.00017808,2]
[335647675,1724398272775,-606.94,0.00017808,2]
[335647677,1724398272785,-500.0,0.00017808,2]
[335647679,1724398272794,-838.47,0.00017808,2]
[335647681,1724398272805,-500.0,0.00017808,2]
[335647683,1724398272815,-500.0,0.00017808,2]
[335647685,1724398272824,-500.0,0.00017808,2]
[335647687,1724398272833,-541.04,0.00017808,2]
[335647689,1724398272843,-500.0,0.00017808,2]
[335647691,1724398272853,-500.0,0.00017808,2]
[335647693,1724398272863,-500.0,0.00017808,2]
[335647695,1724398272872,-583.63,0.00017808,2]
[335647697,1724398272881,-500.0,0.00017808,2]
[335647699,1724398272890,-957.87,0.00017808,2]
[335647701,1724398272901,-500.0,0.00017808,2]
[335647703,1724398272910,-1011.34,0.00017808,2]
[335647705,1724398272919,-500.0,0.00017808,2]
[335647708,1724398272929,-687.63,0.00017808,2]
[335647710,1724398272939,-530.27,0.00017808,2]
[335647712,1724398272948,-500.0,0.00017808,2]
[335647714,1724398272957,-500.0,0.00017808,2]
[335647716,1724398272967,-500.0,0.00017808,2]
[335647718,1724398272975,-524.34295514,0.00017808,2]
[335647720,1724398272985,-500.0,0.00017808,2]
[335647722,1724398272994,-568.86,0.00017808,2]
[335647724,1724398273004,-822.04,0.00017808,2]
[335647726,1724398273013,-500.0,0.00017808,2]
[335647728,1724398273022,-500.0,0.00017808,2]
[335647730,1724398273031,-500.0,0.00017808,2]
[335647732,1724398273040,-658.88,0.00017808,2]
[335647734,1724398273051,-502.84992699,0.00017808,2]
[335647736,1724398273061,-500.0,0.00017808,2]
[335647738,1724398273069,-295.836167,0.00017808,2]
[335647740,1724398273079,-500.0,0.00017808,2]
[335647742,1724398273089,-273.84556223,0.00017808,2]
[335647744,1724398273098,-500.0,0.00017808,2]
[335647746,1724398273108,-715.59,0.00017808,2]
[335647748,1724398273118,-500.0,0.00017808,2]
[335647750,1724398273127,-500.0,0.00017808,2]
[335647752,1724398273137,-500.0,0.00017808,2]
[335647754,1724398273147,-500.0,0.00017808,2]
[335647756,1724398273157,-500.0,0.00017808,2]
[335647758,1724398273168,-654.15,0.00017808,2]
[335647760,1724398273177,-500.0,0.00017808,2]
[335647762,1724398273186,-992.15,0.00017808,2]
[335647764,1724398273195,-500.0,0.00017808,2]
[335647766,1724398273205,-500.0,0.00017808,2]
[335647768,1724398273214,-500.0,0.00017808,2]
[335647770,1724398273224,-500.0,0.00017808,2]
[335647772,1724398273235,-500.0,0.00017808,2]
[335647774,1724398273245,-500.0,0.00017808,2]
[335647776,1724398273254,-500.0,0.00017808,2]
[335647778,1724398273263,-522.78,0.00017808,2]
[335647780,1724398273272,-500.0,0.00017808,2]
[335647782,1724398273282,-877.44,0.00017808,2]
[335647784,1724398273291,-500.0,0.00017808,2]
[335647786,1724398273302,-500.0,0.00017808,2]
[335647788,1724398273311,-695.74,0.00017808,2]
[335647790,1724398273320,-500.0,0.00017808,2]
[335647792,1724398273330,-500.0,0.00017808,2]
[335647794,1724398273339,-500.0,0.00017808,2]
[335647796,1724398273349,-500.0,0.00017808,2]
[335647798,1724398273358,-532.98,0.00017808,2]
[335647800,1724398273367,-516.0436154,0.00017808,2]
[335647802,1724398273377,-500.0,0.00017808,2]
[335647804,1724398273386,-500.0,0.00017808,2]
[335647806,1724398273396,-500.0,0.00017808,2]
[335647808,1724398273406,-500.0,0.00017808,2]
[335647810,1724398273416,-500.0,0.00017808,2]
[335647812,1724398273425,-2524.74,0.00017808,2]
[335647814,1724398273435,-1179.78,0.00017808,2]
[335647816,1724398273446,-1314.97,0.00017808,2]
[335647818,1724398273456,-500.0,0.00017808,2]
[335647820,1724398273465,-2419.23,0.00017808,2]
[335647822,1724398273474,-500.0,0.00017808,2]
[335647824,1724398273484,-500.0,0.00017808,2]
[335647826,1724398273494,-838.69,0.00017808,2]
[335647828,1724398273504,-500.0,0.00017808,2]
[335647831,1724398273514,-805.79,0.00017808,2]
[335647833,1724398273524,-500.0,0.00017808,2]
[335647835,1724398273533,-1547.97,0.00017808,2]
[335647837,1724398273544,-744.45,0.00017808,2]
[335647839,1724398273556,-500.0,0.00017808,2]
[335647841,1724398273565,-500.0,0.00017808,2]
[335647843,1724398273576,-1075.24,0.00017808,2]
[335647845,1724398273586,-756.53,0.00017808,2]
[335647847,1724398273596,-1385.68,0.00017808,2]
[335647849,1724398273606,-500.0,0.00017808,2]
[335647851,1724398273616,-500.0,0.00017808,2]
[335647853,1724398273625,-855.15,0.00017808,2]
[335647855,1724398273635,-501.29717826,0.00017808,2]
[335647857,1724398273645,-914.71,0.00017808,2]
[335647859,1724398273655,-558.55,0.00017808,2]
[335647861,1724398273665,-619.34,0.00017808,2]
[335647863,1724398273675,-500.0,0.00017808,2]
[335647865,1724398273685,-1514.06,0.00017808,2]
[335647867,1724398273694,-500.0,0.00017808,2]
[335647869,1724398273704,-500.0,0.00017808,2]
[335647871,1724398273713,-500.0,0.00017808,2]
[335647873,1724398273723,-500.0,0.00017808,2]
[335647875,1724398273733,-513.66,0.00017808,2]
[335647877,1724398273742,-500.0,0.00017808,2]
[335647879,1724398273752,-1184.21,0.00017808,2]
[335647881,1724398273762,-878.73,0.00017808,2]
[335647883,1724398273771,-500.0,0.00017808,2]
[335647885,1724398273781,-500.0,0.00017808,2]
[335647888,1724398273791,-515.42,0.00017808,2]
[335647890,1724398273802,-500.0,0.00017808,2]
[335647892,1724398273812,-500.0,0.00017808,2]
[335647894,1724398273822,-500.0,0.00017808,2]
[335647896,1724398273832,-711.62,0.00017808,2]
[335647898,1724398273842,-500.0,0.00017808,2]
[335647900,1724398273852,-2135.65,0.00017808,2]
[335647902,1724398273861,-500.0,0.00017808,2]
[335647904,1724398273871,-2453.07193,0.00017808,2]
[335647906,1724398273881,-1246.02,0.00017808,2]
[335647908,1724398273892,-331.59774249,0.00017808,2]
[335647910,1724398273902,-2453.07193,0.00017808,2]
[335647912,1724398273912,-500.0,0.00017808,2]
[335647914,1724398273921,-1687.47,0.00017808,2]
[335647916,1724398273931,-500.0,0.00017808,2]
[335647918,1724398273942,-156.115833,0.00017808,2]
[335647920,1724398273951,-2636.80337,0.00017808,2]
[335647922,1724398273961,-735.36,0.00017808,2]
[335647924,1724398273971,-156.115833,0.00017808,2]
[335647926,1724398273980,-807.02,0.00017808,2]
[335647928,1724398273991,-2636.80337,0.00017808,2]
[335647930,1724398274001,-613.43,0.00017808,2]
[335647932,1724398274011,-500.0,0.00017808,2]
[335647934,1724398274020,-1019.38,0.00017808,2]
[335647937,1724398274031,-500.0,0.00017808,2]
[335647938,1724398274040,-556.9,0.00017808,2]
[335647940,1724398274050,-500.0,0.00017808,2]
[335647942,1724398274059,-500.57,0.00017808,2]
[335647944,1724398274069,-2759.752137,0.00017808,2]
[335647947,1724398274079,-2759.752137,0.00017808,2]
[335647949,1724398274089,-500.0,0.00017808,2]
[335647951,1724398274099,-151.0,0.00017808,2]
[335647953,1724398274110,-3941.01,0.00017808,2]
[335647955,1724398274119,-500.0,0.00017808,2]
[335647957,1724398274129,-151.0,0.00017808,2]
[335647972,1724398274273,-500.0,0.00017808,2]
[335647974,1724398274285,-500.0,0.00017808,2]
[335647976,1724398274295,-829.46,0.00017808,2]
[335647978,1724398274306,-1186.27,0.00017808,2]
[335647980,1724398274315,-500.0,0.00017808,2]
[335647982,1724398274325,-550.83,0.00017808,2]
[335647985,1724398274335,-500.0,0.00017808,2]
[335647987,1724398274346,-532.3098905,0.00017808,2]
[335647989,1724398274357,-518.36,0.00017808,2]
[335647991,1724398274367,-500.0,0.00017808,2]
[335647993,1724398274378,-768.86,0.00017808,2]
[335647995,1724398274387,-428.737187,0.00017808,2]
[335647997,1724398274398,-1390.21,0.00017808,2]
[335647999,1724398274407,-428.737187,0.00017808,2]
[335648001,1724398274416,-151.0,0.00017808,2]
[335648003,1724398274427,-1063.26,0.00017808,2]
[335648005,1724398274437,-500.0,0.00017808,2]
[335648008,1724398274449,-151.0,0.00017808,2]
[335648010,1724398274461,-287.49213722,0.00017808,2]
[335648012,1724398274473,-695.85,0.00017808,2]
[335648014,1724398274483,-751.58,0.00017808,2]
[335648016,1724398274493,-1507.16,0.00017808,2]
[335648019,1724398274502,-500.0,0.00017808,2]
[335648021,1724398274511,-531.56,0.00017808,2]
[335648023,1724398274521,-500.0,0.00017808,2]
[335648025,1724398274531,-934.73,0.00017808,2]
[335648027,1724398274541,-500.0,0.00017808,2]
[335648029,1724398274551,-1196.57,0.00017808,2]
[335648031,1724398274560,-500.0,0.00017808,2]
[335648033,1724398274570,-500.0,0.00017808,2]
[335648035,1724398274579,-500.0,0.00017808,2]
[335648037,1724398274589,-500.0,0.00017808,2]
[335648039,1724398274599,-500.0,0.00017808,2]
[335648041,1724398274608,-2371.0,0.00017808,2]
[335648043,1724398274619,-760.53,0.00017808,2]
[335648045,1724398274629,-1042.45,0.00017808,2]
[335648047,1724398274639,-1704.03,0.00017808,2]
[335648049,1724398274648,-500.0,0.00017808,2]
[335648051,1724398274658,-500.0,0.00017808,2]
[335648053,1724398274668,-1131.39,0.00017808,2]
[335648055,1724398274677,-500.0,0.00017808,2]
[335648057,1724398274688,-1160.44,0.00017808,2]
[335648059,1724398274697,-500.0,0.00017808,2]
[335648061,1724398274706,-877.22,0.00017808,2]
[335648063,1724398274716,-500.0,0.00017808,2]
[335648065,1724398274725,-1974.73,0.00017808,2]
[335648067,1724398274735,-503.29836824,0.00017808,2]
[335648069,1724398274745,-1373.05,0.00017808,2]
[335648071,1724398274754,-500.0,0.00017808,2]
[335648073,1724398274765,-500.0,0.00017808,2]
[335648075,1724398274774,-1579.0,0.00017808,2]
[335648077,1724398274783,-960.02,0.00017808,2]
[335648079,1724398274794,-3359.93732,0.00017808,2]
[335648081,1724398274804,-500.0,0.00017808,2]
[335648083,1724398274814,-500.0,0.00017808,2]
[335648085,1724398274823,-3359.93732,0.00017808,2]
[335648087,1724398274833,-377.617656,0.00017808,2]
[335648089,1724398274842,-500.0,0.00017808,2]
[335648091,1724398274851,-377.617656,0.00017808,2]
[335648093,1724398274861,-500.0,0.00017808,2]
[335648095,1724398274871,-607.01,0.00017808,2]
[335648097,1724398274880,-1164.01,0.00017808,2]
[335648099,1724398274890,-500.0,0.00017808,2]
[335648101,1724398274899,-810.46,0.00017808,2]
[335648103,1724398274909,-447.32168753,0.00017808,2]
[335648105,1724398274918,-818.13,0.00017808,2]
[335648107,1724398274927,-500.0,0.00017808,2]
[335648109,1724398274937,-896.12,0.00017808,2]
[335648111,1724398274946,-872.75,0.00017808,2]
[335648113,1724398274955,-500.0,0.00017808,2]
[335648115,1724398274965,-695.83,0.00017808,2]
[335648117,1724398274975,-500.0,0.00017808,2]
[335648119,1724398274984,-500.0,0.00017808,2]
[335648121,1724398274994,-871.08,0.00017808,2]
[335648123,1724398275004,-837.67,0.00017808,2]
[335648125,1724398275013,-500.0,0.00017808,2]
[335648127,1724398275022,-500.0,0.00017808,2]
[335648129,1724398275031,-387.6192602,0.00017808,2]
[335648130,1724398275040,-825.29,0.00017808,2]
[335648132,1724398275051,-887.32,0.00017808,2]
[335648134,1724398275060,-1054.55,0.00017808,2]
[335648136,1724398275070,-908.36,0.00017808,2]
[335648138,1724398275080,-784.51,0.00017808,2]
[335648140,1724398275090,-500.0,0.00017808,2]
[335648142,1724398275099,-1232.73,0.00017808,2]
[335648144,1724398275108,-500.0,0.00017808,2]
[335648146,1724398275118,-500.0,0.00017808,2]
[335648148,1724398275128,-1221.69,0.00017808,2]
[335648150,1724398275137,-500.0,0.00017808,2]
[335648152,1724398275147,-723.04,0.00017808,2]
[335648154,1724398275157,-500.0,0.00017808,2]
[335648156,1724398275169,-1070.93,0.00017808,2]
[335648158,1724398275179,-682.79,0.00017808,2]
[335648160,1724398275188,-540.64,0.00017808,2]
[335648162,1724398275198,-1487.4,0.00017808,2]
[335648164,1724398275209,-811.12,0.00017808,2]
[335648166,1724398275218,-4026.58,0.00017808,2]
[335648168,1724398275228,-349.37013663,0.00017808,2]
[335649582,1724398766966,174.83,0.0001211,2]
[335649588,1724399002496,464.21298391,0.00027,120]
[335649591,1724399147140,-2513.50057973,0.00012779,2]
[335649594,1724399234146,-817.86473213,0.00012985,2]
[335649595,1724399234170,-154.96893549,0.00012991,2]
[335649596,1724399234194,-197.16299884,0.00013025,2]
[335649597,1724399234217,-355.335673,0.00014247,2]
[335649598,1724399234240,-271.945127,0.00014327,2]
[335649599,1724399234262,-7147.71461005,0.00015489,2]
[335649600,1724399234285,-2266.30884617,0.00016327,2]
[335649601,1724399237103,-268.54180903,0.00013688,2]
[335649602,1724399237127,-370.62829592,0.00014519,2]
[335649603,1724399237150,-1000.0,0.00016,16]
[335649604,1724399237174,-856.4533695,0.00016327,2]
[335649605,1724399237198,-3143.6504802,0.00016337,2]
[335649606,1724399237234,-300.0,0.00016337,2]
[335649607,1724399237262,-3143.6504802,0.00016337,2]
[335649608,1724399237286,-3143.6504802,0.00016338,2]
[335649609,1724399237309,-3143.6504802,0.00016338,2]
[335649610,1724399237332,-2008.5564396,0.00016338,2]
[335649611,1724399237355,-3143.6504802,0.00016338,2]
[335649612,1724399237379,-3142.29986609,0.00016426,2]
[335649613,1724399237401,-500.0,0.00016427,2]
[335649614,1724399237425,-500.0,0.00016427,2]
[335649615,1724399237452,-607.56643346,0.00016427,2]
[335649616,1724399237476,-500.0,0.00016427,2]
[335649617,1724399237500,-500.0,0.00016427,2]
[335649618,1724399237525,-500.0,0.00016427,2]
[335649619,1724399237547,-500.0,0.00016427,2]
[335649620,1724399237569,-500.0,0.00016427,2]
[335649621,1724399237592,-500.0,0.00016427,2]
[335649622,1724399237616,-500.0,0.00016427,2]
[335649623,1724399237643,-500.0,0.00016427,2]
[335649624,1724399237666,-500.0,0.00016427,2]
[335649625,1724399237690,-500.0,0.00016427,2]
[335649626,1724399237711,-500.0,0.00016427,2]
[335649627,1724399237733,-500.0,0.00016427,2]
[335649628,1724399237756,-500.0,0.00016427,2]
[335649629,1724399237779,-500.0,0.00016427,2]
[335649630,1724399237802,-500.0,0.00016427,2]
[335649631,1724399237823,-500.0,0.00016427,2]
[335649632,1724399237847,-518.6300035,0.00016427,2]
[335649633,1724399237869,-500.0,0.00016427,2]
[335649634,1724399237892,-500.0,0.00016427,2]
[335649635,1724399237921,-500.0,0.00016427,2]
[335649636,1724399237946,-500.0,0.00016427,2]
[335649637,1724399237971,-500.0,0.00016427,2]
[335649638,1724399237995,-500.0,0.00016427,2]
[335649639,1724399238017,-500.0,0.00016427,2]
[335649640,1724399238039,-200.0,0.00016427,2]
[335649641,1724399238063,-128886.18961054,0.00016428,2]
[335649642,1724399245111,-15882.24604092,0.00016428,2]
[335649643,1724399246097,-770.12798818,0.00016428,2]
[335649645,1724399251157,-1367.1601151,0.00016428,2]
[335649649,1724399348458,-817.52040499,0.00014519,3]
[335649650,1724399348481,-300.0,0.00016427,2]
[335649651,1724399348503,-154.76012181,0.00016428,2]
[335649652,1724399348524,-3015.15515243,0.00016428,2]
[335649653,1724399359177,-1128.97224568,0.00016428,2]
[335649682,1724399432749,-1039.10609285,0.00016337,2]
[335649683,1724399432838,-1060.24837646,0.00016337,2]
[335649709,1724399438526,-633.06246941,0.00016337,2]
[335649710,1724399438536,-1807.70079564,0.00016338,2]
[335649711,1724399438546,-300.0,0.00016427,2]
[335649712,1724399438556,-2105.27576221,0.00016428,2]
[335649713,1724399438620,-397600.54774068,0.00016428,2]
[335649714,1724399438630,-340.59318307,0.00016437,2]
[335649715,1724399438640,-284.05448049,0.00016437,2]
[335649716,1724399438651,-500.0,0.00016437,2]
[335649717,1724399438660,-559.36535367,0.00016437,2]
[335649718,1724399438670,-509.91205028,0.00016437,2]
[335649719,1724399438680,-559.36535367,0.00016437,2]
[335649720,1724399438689,-559.36535367,0.00016437,2]
[335649721,1724399438698,-559.36535367,0.00016437,2]
[335649722,1724399438708,-559.36535367,0.00016437,2]
[335649723,1724399438719,-559.36535367,0.00016437,2]
[335649724,1724399438729,-559.36535367,0.00016437,2]
[335649725,1724399438738,-559.36535367,0.00016437,2]
[335649726,1724399438749,-559.36535367,0.00016437,2]
[335649727,1724399438759,-559.36535367,0.00016437,2]
[335649728,1724399438769,-559.36535367,0.00016437,2]
[335649729,1724399438778,-559.36535367,0.00016437,2]
[335649730,1724399438788,-559.36535367,0.00016437,2]
[335649731,1724399438798,-559.36535367,0.00016437,2]
[335649732,1724399438807,-559.36535367,0.00016437,2]
[335649733,1724399438818,-559.36535367,0.00016437,2]
[335649734,1724399438828,-559.36535367,0.00016437,2]
[335649735,1724399438838,-559.36535367,0.00016437,2]
[335649736,1724399438848,-559.36535367,0.00016437,2]
[335649737,1724399438858,-559.36535367,0.00016437,2]